[Event "Late-Titled-Tuesday-Blitz-January-23-2024"]
[Site "Chess.com"]
[Date "2024.01.23"]
[Round "1"]
[White "sakkikuska"]
[Black "esrosenberg"]
[Result "1-0"]
[WhiteElo "2657"]
[BlackElo "2347"]
[TimeControl "180+1"]
[EndTime "14:08:10 PST"]
[Termination "sakkikuska won by checkmate"]

1. e4 {[%clk 0:03:00]} 1... g6 {[%clk 0:03:00.1]} 2. d4 {[%clk 0:03:00.1]} 2...
Bg7 {[%clk 0:03:00.6]} 3. Nf3 {[%clk 0:03:00.7]} 3... d6 {[%clk 0:03:00.2]} 4.
Be2 {[%clk 0:03:00]} 4... a6 {[%clk 0:02:59.4]} 5. O-O {[%clk 0:02:59.9]} 5...
Nf6 {[%clk 0:02:43.7]} 6. Nc3 {[%clk 0:02:59.6]} 6... O-O {[%clk 0:02:42.9]} 7.
h3 {[%clk 0:02:57.2]} 7... b5 {[%clk 0:02:40.4]} 8. e5 {[%clk 0:02:57]} 8... Ne8
{[%clk 0:02:39.2]} 9. Bg5 {[%clk 0:02:39.3]} 9... h6 {[%clk 0:02:37.9]} 10. Be3
{[%clk 0:02:34.7]} 10... Bb7 {[%clk 0:02:36.9]} 11. Qd2 {[%clk 0:02:33]} 11...
Kh7 {[%clk 0:02:36.7]} 12. exd6 {[%clk 0:02:30.1]} 12... cxd6 {[%clk 0:02:31.4]}
13. d5 {[%clk 0:02:15.3]} 13... Nf6 {[%clk 0:02:23.1]} 14. a3 {[%clk 0:02:10.1]}
14... Nbd7 {[%clk 0:02:22.3]} 15. Rad1 {[%clk 0:01:53.8]} 15... Rc8 {[%clk
0:02:22.1]} 16. Nd4 {[%clk 0:01:38.8]} 16... Nb6 {[%clk 0:02:17]} 17. Bf3 {[%clk
0:01:35.4]} 17... Nc4 {[%clk 0:02:16.5]} 18. Qe2 {[%clk 0:01:34]} 18... Nxb2
{[%clk 0:02:14.6]} 19. Rb1 {[%clk 0:01:20.3]} 19... Nc4 {[%clk 0:02:09]} 20. a4
{[%clk 0:01:06]} 20... Qa5 {[%clk 0:01:52.7]} 21. Nb3 {[%clk 0:00:43.7]} 21...
Qxc3 {[%clk 0:01:51.4]} 22. Bd4 {[%clk 0:00:44.2]} 22... Qb4 {[%clk 0:01:42.5]}
23. Nc5 {[%clk 0:00:44.1]} 23... dxc5 {[%clk 0:01:29.8]} 24. Rxb4 {[%clk
0:00:42.9]} 24... cxb4 {[%clk 0:01:30.7]} 25. axb5 {[%clk 0:00:42.6]} 25... axb5
{[%clk 0:01:27.3]} 26. Rb1 {[%clk 0:00:36.4]} 26... Bxd5 {[%clk 0:01:20.7]} 27.
Bxf6 {[%clk 0:00:30.1]} 27... Bxf3 {[%clk 0:01:16.8]} 28. Qxe7 {[%clk
0:00:24.3]} 28... Bd5 {[%clk 0:01:08.4]} 29. Bxg7 {[%clk 0:00:24.1]} 29... Kxg7
{[%clk 0:01:08.6]} 30. Qxb4 {[%clk 0:00:24.1]} 30... Rb8 {[%clk 0:01:04.1]} 31.
Qc3+ {[%clk 0:00:24.1]} 31... Kg8 {[%clk 0:01:03.6]} 32. Qd4 {[%clk 0:00:24.5]}
32... Rfd8 {[%clk 0:01:01.8]} 33. Qf6 {[%clk 0:00:24.6]} 33... Rd6 {[%clk
0:00:59.7]} 34. Qf4 {[%clk 0:00:24.8]} 34... Rbb6 {[%clk 0:00:56.9]} 35. Qxh6
{[%clk 0:00:23.7]} 35... Be4 {[%clk 0:00:51.7]} 36. Re1 {[%clk 0:00:22.6]} 36...
Re6 {[%clk 0:00:49.1]} 37. c3 {[%clk 0:00:22.6]} 37... b4 {[%clk 0:00:40.3]} 38.
cxb4 {[%clk 0:00:22.3]} 38... Rxb4 {[%clk 0:00:41.2]} 39. Rd1 {[%clk 0:00:17.9]}
39... Rb8 {[%clk 0:00:39.1]} 40. Qf4 {[%clk 0:00:17.6]} 40... Rbe8 {[%clk
0:00:38.9]} 41. f3 {[%clk 0:00:17.3]} 41... Bf5 {[%clk 0:00:38.7]} 42. Qxc4
{[%clk 0:00:17]} 42... Re1+ {[%clk 0:00:36.5]} 43. Rxe1 {[%clk 0:00:17.4]} 43...
Rxe1+ {[%clk 0:00:37.4]} 44. Kf2 {[%clk 0:00:18.1]} 44... Re8 {[%clk 0:00:34.1]}
45. Qc6 {[%clk 0:00:18]} 45... Rd8 {[%clk 0:00:30.4]} 46. Qf6 {[%clk 0:00:17.9]}
46... Rd2+ {[%clk 0:00:28.6]} 47. Kg1 {[%clk 0:00:18.4]} 47... Rd1+ {[%clk
0:00:28.7]} 48. Kh2 {[%clk 0:00:18.9]} 48... Rd2 {[%clk 0:00:28.3]} 49. h4
{[%clk 0:00:19.4]} 49... Re2 {[%clk 0:00:26]} 50. h5 {[%clk 0:00:19.8]} 50...
Re6 {[%clk 0:00:26.6]} 51. Qg5 {[%clk 0:00:17.3]} 51... Kg7 {[%clk 0:00:26.7]}
52. h6+ {[%clk 0:00:17.6]} 52... Kh7 {[%clk 0:00:26.6]} 53. Qf4 {[%clk
0:00:17.3]} 53... Re7 {[%clk 0:00:20.2]} 54. Kg3 {[%clk 0:00:13.4]} 54... Be6
{[%clk 0:00:19.3]} 55. Qf6 {[%clk 0:00:13.2]} 55... Kxh6 {[%clk 0:00:11.9]} 56.
Qh8+ {[%clk 0:00:13.2]} 56... Kg5 {[%clk 0:00:11.4]} 57. Qh4+ {[%clk 0:00:13.5]}
57... Kf5 {[%clk 0:00:11]} 58. Qf4# {[%clk 0:00:13.8]} 1-0

[Event "Late-Titled-Tuesday-Blitz-January-23-2024"]
[Site "Chess.com"]
[Date "2024.01.23"]
[Round "1"]
[White "vugarrasulov"]
[Black "Vladimir_2020"]
[Result "1/2-1/2"]
[WhiteElo "2924"]
[BlackElo "2728"]
[TimeControl "180+1"]
[EndTime "14:08:11 PST"]
[Termination "Game drawn by repetition"]

1. e4 {[%clk 0:03:00.9]} 1... e5 {[%clk 0:02:59.1]} 2. Nf3 {[%clk 0:03:01.3]}
2... Nc6 {[%clk 0:02:59.1]} 3. Bc4 {[%clk 0:03:01.9]} 3... Bc5 {[%clk
0:02:58.4]} 4. d3 {[%clk 0:03:01.8]} 4... Nf6 {[%clk 0:02:57.5]} 5. O-O {[%clk
0:03:02.1]} 5... h6 {[%clk 0:02:57.1]} 6. Nc3 {[%clk 0:02:59.4]} 6... d6 {[%clk
0:02:54.5]} 7. a3 {[%clk 0:02:59]} 7... a6 {[%clk 0:02:51.4]} 8. Be3 {[%clk
0:02:58.6]} 8... Bxe3 {[%clk 0:02:46.2]} 9. fxe3 {[%clk 0:02:59.5]} 9... O-O
{[%clk 0:02:46]} 10. Qe1 {[%clk 0:02:59.3]} 10... Be6 {[%clk 0:02:45.1]} 11. Nd5
{[%clk 0:02:44.3]} 11... Bxd5 {[%clk 0:02:44.1]} 12. exd5 {[%clk 0:02:43.1]}
12... Ne7 {[%clk 0:02:44.2]} 13. e4 {[%clk 0:02:42.1]} 13... Ng6 {[%clk
0:02:43.7]} 14. Nh4 {[%clk 0:02:37.9]} 14... Nxh4 {[%clk 0:02:38.4]} 15. Qxh4
{[%clk 0:02:38.8]} 15... Nh7 {[%clk 0:02:32.5]} 16. Qg3 {[%clk 0:02:35.8]} 16...
Qg5 {[%clk 0:02:30.5]} 17. Qh3 {[%clk 0:02:34.7]} 17... g6 {[%clk 0:02:21.5]}
18. Rae1 {[%clk 0:02:23.2]} 18... Kg7 {[%clk 0:02:16.8]} 19. Bb3 {[%clk
0:02:15.4]} 19... f5 {[%clk 0:02:10.5]} 20. c3 {[%clk 0:02:10]} 20... Qg4 {[%clk
0:01:56.7]} 21. Qxg4 {[%clk 0:02:04.8]} 21... fxg4 {[%clk 0:01:57]} 22. Bc2
{[%clk 0:01:58.5]} 22... Ng5 {[%clk 0:01:50.7]} 23. b4 {[%clk 0:01:54.9]} 23...
a5 {[%clk 0:01:46.6]} 24. Rxf8 {[%clk 0:01:48]} 24... Kxf8 {[%clk 0:01:45.7]}
25. b5 {[%clk 0:01:45.7]} 25... b6 {[%clk 0:01:44.4]} 26. Kf2 {[%clk 0:01:45.8]}
26... Kg7 {[%clk 0:01:36.1]} 27. Ke3 {[%clk 0:01:46.1]} 27... Rf8 {[%clk
0:01:16]} 28. d4 {[%clk 0:01:46.2]} 28... h5 {[%clk 0:01:15.4]} 29. Bd3 {[%clk
0:01:44]} 29... h4 {[%clk 0:01:12.5]} 30. Be2 {[%clk 0:01:38.4]} 30... h3 {[%clk
0:01:02]} 31. gxh3 {[%clk 0:01:27.8]} 31... Rf4 {[%clk 0:00:54.1]} 32. hxg4
{[%clk 0:01:22.6]} 32... Rxe4+ {[%clk 0:00:50.4]} 33. Kd3 {[%clk 0:01:22.7]}
33... exd4 {[%clk 0:00:47.5]} 34. h4 {[%clk 0:01:12.9]} 34... Nf3 {[%clk
0:00:37.9]} 35. Kxe4 {[%clk 0:01:06.3]} 35... Nxe1 {[%clk 0:00:37.9]} 36. cxd4
{[%clk 0:01:04.3]} 36... Ng2 {[%clk 0:00:34.8]} 37. g5 {[%clk 0:00:55.1]} 37...
Nxh4 {[%clk 0:00:32.8]} 38. Bg4 {[%clk 0:00:55.8]} 38... Ng2 {[%clk 0:00:30.5]}
39. a4 {[%clk 0:00:50.1]} 39... Ne1 {[%clk 0:00:27.3]} 40. Be2 {[%clk
0:00:48.1]} 40... Nc2 {[%clk 0:00:26.9]} 41. Bd1 {[%clk 0:00:47.2]} 41... Nb4
{[%clk 0:00:26.1]} 42. Bb3 {[%clk 0:00:42.7]} 42... Kf7 {[%clk 0:00:25.4]} 43.
Ke3 {[%clk 0:00:39.8]} 43... Kg7 {[%clk 0:00:25.1]} 44. Kd2 {[%clk 0:00:40.3]}
44... Kf7 {[%clk 0:00:23.7]} 45. Bd1 {[%clk 0:00:37.1]} 45... Kg7 {[%clk
0:00:22.8]} 46. Bf3 {[%clk 0:00:37.4]} 46... Kf7 {[%clk 0:00:21.7]} 47. Kc3
{[%clk 0:00:36.2]} 47... Kg7 {[%clk 0:00:21.8]} 48. Kc4 {[%clk 0:00:36.1]} 48...
Kf7 {[%clk 0:00:21.9]} 49. Be4 {[%clk 0:00:36.1]} 49... Kg7 {[%clk 0:00:21.8]}
50. Kc3 {[%clk 0:00:29.7]} 50... Kf7 {[%clk 0:00:20.9]} 51. Kd2 {[%clk
0:00:30.2]} 51... Kg7 {[%clk 0:00:20.8]} 52. Ke3 {[%clk 0:00:30.7]} 52... Kf7
{[%clk 0:00:20.9]} 53. Kf3 {[%clk 0:00:29.4]} 53... Na2 {[%clk 0:00:20.2]} 54.
Bc2 {[%clk 0:00:29.2]} 54... Nb4 {[%clk 0:00:15.6]} 55. Bb1 {[%clk 0:00:22.5]}
55... Kg7 {[%clk 0:00:15.3]} 56. Ke4 {[%clk 0:00:23.2]} 56... Kf7 {[%clk
0:00:15.1]} 57. Bd3 {[%clk 0:00:21.2]} 57... Kg7 {[%clk 0:00:15]} 58. Bc4 {[%clk
0:00:21]} 58... Kf7 {[%clk 0:00:15.2]} 59. Bb3 {[%clk 0:00:21.5]} 59... Kg7
{[%clk 0:00:15.5]} 60. Ke3 {[%clk 0:00:21.9]} 60... Kf7 {[%clk 0:00:15.8]} 61.
Ke2 {[%clk 0:00:21.3]} 61... Kg7 {[%clk 0:00:16.1]} 62. Kd2 {[%clk 0:00:22]}
62... Kf7 {[%clk 0:00:16.5]} 63. Kc3 {[%clk 0:00:22.3]} 63... Kg7 {[%clk
0:00:16.9]} 64. Bc4 {[%clk 0:00:22.7]} 64... Kf7 {[%clk 0:00:17.3]} 65. Kb3
{[%clk 0:00:21.1]} 65... Kg7 {[%clk 0:00:17.6]} 66. Kb2 {[%clk 0:00:21.3]} 66...
Kf7 {[%clk 0:00:17.9]} 67. Kc3 {[%clk 0:00:20.1]} 67... Kg7 {[%clk 0:00:18.1]}
68. Kd2 {[%clk 0:00:20.8]} 68... Kf7 {[%clk 0:00:18.3]} 69. Kc3 {[%clk
0:00:20.3]} 69... Kg7 {[%clk 0:00:18.6]} 70. Kd2 {[%clk 0:00:21]} 70... Kf7
{[%clk 0:00:19]} 71. Kc3 {[%clk 0:00:21.6]} 1/2-1/2

[Event "Late-Titled-Tuesday-Blitz-January-23-2024"]
[Site "Chess.com"]
[Date "2024.01.23"]
[Round "1"]
[White "AlexOstrovskiy"]
[Black "GiorgianBarbosa"]
[Result "1-0"]
[WhiteElo "2791"]
[BlackElo "2442"]
[TimeControl "180+1"]
[EndTime "14:08:11 PST"]
[Termination "AlexOstrovskiy won on time"]

1. e4 {[%clk 0:03:00.9]} 1... c5 {[%clk 0:02:59.9]} 2. Nc3 {[%clk 0:03:00.6]}
2... g6 {[%clk 0:02:59.7]} 3. d4 {[%clk 0:02:59.1]} 3... cxd4 {[%clk 0:03:00.6]}
4. Qxd4 {[%clk 0:02:59.8]} 4... Nf6 {[%clk 0:03:00.4]} 5. Nf3 {[%clk 0:02:59.8]}
5... Nc6 {[%clk 0:03:00.4]} 6. Qd3 {[%clk 0:03:00.3]} 6... d6 {[%clk 0:02:59]}
7. Nd5 {[%clk 0:02:54]} 7... Bg7 {[%clk 0:02:54.9]} 8. c3 {[%clk 0:02:53.5]}
8... O-O {[%clk 0:02:52.9]} 9. Bg5 {[%clk 0:02:53.3]} 9... Be6 {[%clk
0:02:26.1]} 10. Be2 {[%clk 0:02:50.7]} 10... Ne5 {[%clk 0:02:17.3]} 11. Nxe5
{[%clk 0:02:48.1]} 11... dxe5 {[%clk 0:02:18.2]} 12. Rd1 {[%clk 0:02:33]} 12...
Re8 {[%clk 0:01:56]} 13. O-O {[%clk 0:02:30.9]} 13... Qa5 {[%clk 0:01:55.9]} 14.
b4 {[%clk 0:02:23.7]} 14... Qd8 {[%clk 0:01:48.3]} 15. Bf3 {[%clk 0:02:00.1]}
15... Rc8 {[%clk 0:01:39.5]} 16. Qe3 {[%clk 0:01:46.4]} 16... Bxd5 {[%clk
0:01:28.5]} 17. exd5 {[%clk 0:01:47.3]} 17... a6 {[%clk 0:01:26.5]} 18. Qxe5
{[%clk 0:01:34.5]} 18... Nd7 {[%clk 0:01:25.4]} 19. Qe2 {[%clk 0:01:17.3]} 19...
Rxc3 {[%clk 0:01:26.1]} 20. d6 {[%clk 0:01:17.4]} 20... Bf6 {[%clk 0:00:50.1]}
21. dxe7 {[%clk 0:01:06.3]} 21... Bxe7 {[%clk 0:00:51]} 22. Rfe1 {[%clk
0:00:56.1]} 22... Bxg5 {[%clk 0:00:22.2]} 23. Qxe8+ {[%clk 0:00:54.4]} 23...
Qxe8 {[%clk 0:00:22.2]} 24. Rxe8+ {[%clk 0:00:55.1]} 24... Nf8 {[%clk
0:00:23.1]} 25. Bxb7 {[%clk 0:00:49.9]} 25... Rc4 {[%clk 0:00:20.3]} 26. Bxa6
{[%clk 0:00:42.2]} 26... Rxb4 {[%clk 0:00:20]} 27. g3 {[%clk 0:00:33.9]} 27...
Ra4 {[%clk 0:00:19.7]} 28. Bb5 {[%clk 0:00:23.7]} 28... Rxa2 {[%clk 0:00:19.3]}
29. h4 {[%clk 0:00:21.7]} 29... Bf6 {[%clk 0:00:17.8]} 30. Rd6 {[%clk
0:00:19.8]} 30... Bg7 {[%clk 0:00:15.4]} 31. Bc4 {[%clk 0:00:17.5]} 31... Ra7
{[%clk 0:00:14.7]} 32. Rdd8 {[%clk 0:00:16.1]} 32... h5 {[%clk 0:00:14.3]} 33.
Kg2 {[%clk 0:00:16.1]} 33... Bh6 {[%clk 0:00:13.8]} 34. Rc8 {[%clk 0:00:15.6]}
34... Bg7 {[%clk 0:00:11]} 35. Red8 {[%clk 0:00:15.2]} 35... Bh6 {[%clk
0:00:11]} 36. Ra8 {[%clk 0:00:14.7]} 36... Rc7 {[%clk 0:00:10.8]} 37. Rdc8
{[%clk 0:00:14.8]} 37... Re7 {[%clk 0:00:11.4]} 38. Kf3 {[%clk 0:00:14]} 38...
Bg7 {[%clk 0:00:10.9]} 39. Ra6 {[%clk 0:00:09.5]} 39... Kh7 {[%clk 0:00:07.9]}
40. Rac6 {[%clk 0:00:08.6]} 40... Bh6 {[%clk 0:00:06.7]} 41. R6c7 {[%clk
0:00:07.6]} 41... Rxc7 {[%clk 0:00:03.3]} 42. Rxc7 {[%clk 0:00:08.5]} 42... Bg7
{[%clk 0:00:01.7]} 43. Bxf7 {[%clk 0:00:07.9]} 43... Kh6 {[%clk 0:00:01.5]} 44.
Kg2 {[%clk 0:00:07.1]} 44... Nh7 {[%clk 0:00:02]} 45. f3 {[%clk 0:00:06.6]}
45... Nf6 {[%clk 0:00:02.9]} 46. Rc6 {[%clk 0:00:06.1]} 46... Kh7 {[%clk
0:00:03]} 47. Kh3 {[%clk 0:00:05.9]} 47... Bh8 {[%clk 0:00:02.4]} 48. g4 {[%clk
0:00:05.9]} 48... hxg4+ {[%clk 0:00:03.3]} 49. fxg4 {[%clk 0:00:06.8]} 49... Kg7
{[%clk 0:00:03.8]} 50. Be6 {[%clk 0:00:06.5]} 50... Ne4 {[%clk 0:00:03.5]} 51.
Rc7+ {[%clk 0:00:06.1]} 51... Kf6 {[%clk 0:00:03.9]} 52. Bc8 {[%clk 0:00:04.6]}
52... g5 {[%clk 0:00:03]} 53. Rc6+ {[%clk 0:00:04.4]} 53... Ke5 {[%clk
0:00:02.3]} 54. h5 {[%clk 0:00:04.7]} 54... Kf4 {[%clk 0:00:01.6]} 55. Rc4
{[%clk 0:00:04.4]} 1-0

[Event "Late-Titled-Tuesday-Blitz-January-23-2024"]
[Site "Chess.com"]
[Date "2024.01.23"]
[Round "1"]
[White "ViIIagra"]
[Black "brunoo2003"]
[Result "0-1"]
[WhiteElo "2961"]
[BlackElo "2523"]
[TimeControl "180+1"]
[EndTime "14:08:25 PST"]
[Termination "brunoo2003 won by resignation"]

1. g3 {[%clk 0:03:00.9]} 1... h5 {[%clk 0:02:58.1]} 2. Nf3 {[%clk 0:02:59]} 2...
d5 {[%clk 0:02:58.1]} 3. Bg2 {[%clk 0:02:58.8]} 3... Nc6 {[%clk 0:02:58.2]} 4.
d4 {[%clk 0:02:57.6]} 4... Bf5 {[%clk 0:02:58.8]} 5. O-O {[%clk 0:02:56.9]} 5...
h4 {[%clk 0:02:56.4]} 6. Nxh4 {[%clk 0:02:48.8]} 6... Rxh4 {[%clk 0:02:56.7]} 7.
gxh4 {[%clk 0:02:49.7]} 7... e6 {[%clk 0:02:57.2]} 8. Bg5 {[%clk 0:02:47.7]}
8... Be7 {[%clk 0:02:53.6]} 9. Qd2 {[%clk 0:02:33.4]} 9... Nf6 {[%clk 0:02:41]}
10. Nc3 {[%clk 0:01:49.9]} 10... Qd7 {[%clk 0:02:40.3]} 11. f3 {[%clk 0:01:37]}
11... O-O-O {[%clk 0:02:16.6]} 12. e4 {[%clk 0:01:30.9]} 12... dxe4 {[%clk
0:02:17.5]} 13. fxe4 {[%clk 0:01:31.8]} 13... Bg6 {[%clk 0:02:15.4]} 14. e5
{[%clk 0:01:31.5]} 14... Ng8 {[%clk 0:01:43.7]} 15. Bxc6 {[%clk 0:01:22.3]}
15... Qxc6 {[%clk 0:01:39.8]} 16. Rad1 {[%clk 0:01:19.7]} 16... f6 {[%clk
0:01:29.3]} 17. Bf4 {[%clk 0:01:15.7]} 17... Bh5 {[%clk 0:01:21]} 18. Rde1
{[%clk 0:01:13.8]} 18... Bc5 {[%clk 0:01:20.8]} 19. Be3 {[%clk 0:01:09.3]} 19...
fxe5 {[%clk 0:01:19.4]} 20. d5 {[%clk 0:01:02.6]} 20... exd5 {[%clk 0:01:09]}
21. Bxc5 {[%clk 0:01:02.9]} 21... Qxc5+ {[%clk 0:01:09.9]} 22. Qf2 {[%clk
0:01:03.4]} 22... Qxf2+ {[%clk 0:00:52.3]} 23. Rxf2 {[%clk 0:01:03.1]} 23... e4
{[%clk 0:00:52.7]} 24. Rf5 {[%clk 0:01:02.5]} 24... Nf6 {[%clk 0:00:53.3]} 25.
Rg5 {[%clk 0:00:57.5]} 25... g6 {[%clk 0:00:47.8]} 26. Rf1 {[%clk 0:00:57.1]}
26... Rd6 {[%clk 0:00:48.4]} 27. Nb5 {[%clk 0:00:52.6]} 27... Rb6 {[%clk
0:00:48.2]} 28. Nd4 {[%clk 0:00:45.9]} 28... Kd7 {[%clk 0:00:47.6]} 29. c3
{[%clk 0:00:43.2]} 29... Ke7 {[%clk 0:00:39.8]} 30. b4 {[%clk 0:00:43.3]} 30...
Ra6 {[%clk 0:00:35.9]} 31. a4 {[%clk 0:00:43.4]} 31... Rd6 {[%clk 0:00:26]} 32.
Re5+ {[%clk 0:00:43.5]} 32... Kd7 {[%clk 0:00:24.4]} 33. Nb5 {[%clk 0:00:42.7]}
33... Ra6 {[%clk 0:00:20]} 34. a5 {[%clk 0:00:39.2]} 34... Be2 {[%clk
0:00:20.1]} 35. Rxf6 {[%clk 0:00:29.6]} 35... Rxf6 {[%clk 0:00:21]} 36. Rxd5+
{[%clk 0:00:30]} 36... Kc8 {[%clk 0:00:20]} 37. Nd4 {[%clk 0:00:24]} 37... Bc4
{[%clk 0:00:19.8]} 38. Re5 {[%clk 0:00:24.1]} 38... Bd3 {[%clk 0:00:20.2]} 39.
Kg2 {[%clk 0:00:22.8]} 39... Kd7 {[%clk 0:00:20.4]} 40. Rd5+ {[%clk 0:00:19.5]}
40... Ke7 {[%clk 0:00:19.8]} 41. h5 {[%clk 0:00:18.8]} 41... gxh5 {[%clk
0:00:19.7]} 42. Rxh5 {[%clk 0:00:19.7]} 42... b6 {[%clk 0:00:19.8]} 43. axb6
{[%clk 0:00:19]} 43... axb6 {[%clk 0:00:20.7]} 44. b5 {[%clk 0:00:19.6]} 44...
Kd6 {[%clk 0:00:20.3]} 45. Rg5 {[%clk 0:00:17.8]} 45... e3 {[%clk 0:00:20.5]}
46. Rg3 {[%clk 0:00:12.5]} 46... Bf1+ {[%clk 0:00:09.8]} 47. Kg1 {[%clk
0:00:11.6]} 47... e2 {[%clk 0:00:10.5]} 48. Re3 {[%clk 0:00:12.1]} 48... Kc5
{[%clk 0:00:08.5]} 49. Nxe2 {[%clk 0:00:08.6]} 49... Bxe2 {[%clk 0:00:09.4]} 50.
Rxe2 {[%clk 0:00:09.5]} 50... Kxb5 {[%clk 0:00:09.9]} 51. Re4 {[%clk 0:00:10.1]}
51... Rc6 {[%clk 0:00:08.9]} 52. c4+ {[%clk 0:00:04.4]} 52... Rxc4 {[%clk
0:00:06.5]} 53. Re5+ {[%clk 0:00:04.4]} 53... Rc5 {[%clk 0:00:06.6]} 54. Re3
{[%clk 0:00:04.8]} 54... Rh5 {[%clk 0:00:06.6]} 55. Kg2 {[%clk 0:00:04.2]} 55...
c5 {[%clk 0:00:07.2]} 56. Kg3 {[%clk 0:00:04.1]} 56... c4 {[%clk 0:00:07.6]} 57.
h4 {[%clk 0:00:04.5]} 57... Kc5 {[%clk 0:00:06.6]} 58. Kg4 {[%clk 0:00:05.4]}
58... Rh8 {[%clk 0:00:06]} 59. Rh3 {[%clk 0:00:05.7]} 59... b5 {[%clk
0:00:06.1]} 60. h5 {[%clk 0:00:06.6]} 60... b4 {[%clk 0:00:06.4]} 61. Kf4 {[%clk
0:00:07.5]} 61... b3 {[%clk 0:00:06.7]} 62. Ke3 {[%clk 0:00:08.4]} 62... b2
{[%clk 0:00:07]} 63. Rh1 {[%clk 0:00:09]} 63... Kb4 {[%clk 0:00:06.1]} 64. Kd2
{[%clk 0:00:09]} 64... Rxh5 {[%clk 0:00:05.4]} 0-1

[Event "Late-Titled-Tuesday-Blitz-January-23-2024"]
[Site "Chess.com"]
[Date "2024.01.23"]
[Round "1"]
[White "BogdanDeac"]
[Black "DanylaBagrov"]
[Result "1-0"]
[WhiteElo "3064"]
[BlackElo "2532"]
[TimeControl "180+1"]
[EndTime "14:08:26 PST"]
[Termination "BogdanDeac won by checkmate"]

1. d4 {[%clk 0:03:00.9]} 1... d6 {[%clk 0:02:48.8]} 2. Bf4 {[%clk 0:02:59.6]}
2... f5 {[%clk 0:02:47]} 3. e3 {[%clk 0:02:56.4]} 3... Nf6 {[%clk 0:02:47.5]} 4.
Nc3 {[%clk 0:02:56.3]} 4... g6 {[%clk 0:02:47.9]} 5. h4 {[%clk 0:02:56.3]} 5...
Bg7 {[%clk 0:02:47.9]} 6. h5 {[%clk 0:02:56.6]} 6... Nxh5 {[%clk 0:02:38.7]} 7.
Rxh5 {[%clk 0:02:55.6]} 7... gxh5 {[%clk 0:02:39.6]} 8. Qxh5+ {[%clk 0:02:55]}
8... Kf8 {[%clk 0:02:38.4]} 9. Nf3 {[%clk 0:02:48.8]} 9... Qe8 {[%clk
0:02:34.3]} 10. Qh4 {[%clk 0:02:43.7]} 10... Nd7 {[%clk 0:02:23.6]} 11. Nd5
{[%clk 0:02:27.8]} 11... Qd8 {[%clk 0:02:17.2]} 12. Bh6 {[%clk 0:01:45.6]} 12...
c6 {[%clk 0:01:41.2]} 13. Nf4 {[%clk 0:00:18.8]} 13... Nf6 {[%clk 0:01:13.1]}
14. O-O-O {[%clk 0:00:17.4]} 14... e6 {[%clk 0:00:46.8]} 15. Bg5 {[%clk
0:00:14.3]} 15... h6 {[%clk 0:00:30.1]} 16. Bxf6 {[%clk 0:00:10]} 16... Bxf6
{[%clk 0:00:24.4]} 17. Qh5 {[%clk 0:00:09.2]} 17... Qe8 {[%clk 0:00:21]} 18. Qh3
{[%clk 0:00:09.1]} 18... Qf7 {[%clk 0:00:19.3]} 19. Bc4 {[%clk 0:00:08.5]} 19...
d5 {[%clk 0:00:17]} 20. Be2 {[%clk 0:00:07.9]} 20... Bd7 {[%clk 0:00:17.4]} 21.
Nd3 {[%clk 0:00:07.6]} 21... Ke7 {[%clk 0:00:16.6]} 22. Nfe5 {[%clk 0:00:07.5]}
22... Qg7 {[%clk 0:00:17.1]} 23. g4 {[%clk 0:00:07.1]} 23... Raf8 {[%clk
0:00:09.9]} 24. Nxd7 {[%clk 0:00:05.8]} 24... Kxd7 {[%clk 0:00:10.8]} 25. gxf5
{[%clk 0:00:06.1]} 25... exf5 {[%clk 0:00:11.7]} 26. Qxf5+ {[%clk 0:00:06.2]}
26... Kc7 {[%clk 0:00:12.4]} 27. Nf4 {[%clk 0:00:06.4]} 27... Kb8 {[%clk
0:00:11.9]} 28. Ne6 {[%clk 0:00:06.2]} 28... Qd7 {[%clk 0:00:11.5]} 29. Qf4+
{[%clk 0:00:05.9]} 29... Kc8 {[%clk 0:00:11]} 30. Nxf8 {[%clk 0:00:05.9]} 30...
Rxf8 {[%clk 0:00:11.9]} 31. Qxh6 {[%clk 0:00:06.4]} 31... Be7 {[%clk 0:00:11.1]}
32. Qh5 {[%clk 0:00:05.7]} 32... Kb8 {[%clk 0:00:10.8]} 33. Rf1 {[%clk
0:00:05.8]} 33... Bd6 {[%clk 0:00:09.7]} 34. Bd3 {[%clk 0:00:05.6]} 34... a5
{[%clk 0:00:08.5]} 35. a3 {[%clk 0:00:05.9]} 35... Qe7 {[%clk 0:00:08.7]} 36.
Kb1 {[%clk 0:00:05.6]} 36... a4 {[%clk 0:00:08.7]} 37. Qd1 {[%clk 0:00:05.1]}
37... Rf6 {[%clk 0:00:06.8]} 38. c3 {[%clk 0:00:05.3]} 38... b5 {[%clk
0:00:06.8]} 39. f3 {[%clk 0:00:05.4]} 39... Qxe3 {[%clk 0:00:06.2]} 40. Bc2
{[%clk 0:00:05.7]} 40... Qf4 {[%clk 0:00:06.3]} 41. Bd3 {[%clk 0:00:05.9]} 41...
Re6 {[%clk 0:00:06.2]} 42. Qc2 {[%clk 0:00:05.7]} 42... Re3 {[%clk 0:00:06.4]}
43. Be2 {[%clk 0:00:05]} 43... Kc7 {[%clk 0:00:06.3]} 44. Bd1 {[%clk 0:00:05.2]}
44... Qf6 {[%clk 0:00:05.9]} 45. Rg1 {[%clk 0:00:05.2]} 45... Re7 {[%clk
0:00:05.3]} 46. Qf2 {[%clk 0:00:05.2]} 46... Bf4 {[%clk 0:00:05.7]} 47. Bc2
{[%clk 0:00:05]} 47... Be3 {[%clk 0:00:05.2]} 48. Qg3+ {[%clk 0:00:05.4]} 48...
Bf4 {[%clk 0:00:04.4]} 49. Qg4 {[%clk 0:00:05.2]} 49... Qe6 {[%clk 0:00:03.9]}
50. Qxf4+ {[%clk 0:00:05]} 50... Kb6 {[%clk 0:00:03.8]} 51. Qb8+ {[%clk
0:00:04.5]} 51... Rb7 {[%clk 0:00:02.9]} 52. Qd8+ {[%clk 0:00:05.1]} 52... Ka6
{[%clk 0:00:02.6]} 53. Rg8 {[%clk 0:00:05.7]} 53... Qe3 {[%clk 0:00:02.4]} 54.
Ka2 {[%clk 0:00:05.9]} 54... Qd2 {[%clk 0:00:02.4]} 55. Bf5 {[%clk 0:00:05.9]}
55... Qd1 {[%clk 0:00:01.9]} 56. Qa8+ {[%clk 0:00:05.7]} 56... Kb6 {[%clk
0:00:02.2]} 57. Qd8+ {[%clk 0:00:05.8]} 57... Ka6 {[%clk 0:00:03.1]} 58. Qd6
{[%clk 0:00:05.7]} 58... Qb3+ {[%clk 0:00:02.8]} 59. Ka1 {[%clk 0:00:06.3]}
59... Kb6 {[%clk 0:00:02.6]} 60. Bb1 {[%clk 0:00:06.4]} 60... b4 {[%clk
0:00:02.4]} 61. Qc5+ {[%clk 0:00:06.5]} 61... Ka6 {[%clk 0:00:02.5]} 62. Ra8+
{[%clk 0:00:06.2]} 62... Ra7 {[%clk 0:00:02.7]} 63. Rxa7# {[%clk 0:00:07.1]} 1-0